lending/lending_fUSD_20251022
["ID","MTS","AMOUNT","RATE_DAILY","PERIOD"]
[392075279,1761137440109,-500.0,0.00043835,120]
[392075281,1761137440119,-500.0,0.00043835,120]
[392075283,1761137440128,-500.0,0.00043835,120]
[392075285,1761137440138,-500.0,0.00043835,120]
[392075287,1761137440147,-505.00796978,0.00043835,120]
[392075290,1761137440157,-500.0,0.00043835,120]
[392075292,1761137440166,-500.0,0.00043835,120]
[392075294,1761137440175,-500.0,0.00043835,120]
[392075296,1761137440185,-163.59497094,0.00043835,120]
[392075298,1761137440195,-584.83,0.00043835,120]
[392075300,1761137440204,-501.73802991,0.00043835,120]
[392075301,1761137440214,-500.0,0.00043835,120]
[392075302,1761137440227,-500.0,0.00043835,120]
[392075303,1761137440236,-500.0,0.00043835,120]
[392075304,1761137440245,-500.0,0.00043835,120]
[392075305,1761137440254,-500.0,0.00043835,120]
[392075306,1761137440263,-300.0,0.00043835,120]
[392075307,1761137440272,-500.0,0.00043835,120]
[392075308,1761137440281,-500.0,0.00043835,120]
[392075309,1761137440290,-500.0,0.00043835,120]
[392075311,1761137440300,-500.0,0.00043835,120]
[392075313,1761137440310,-500.0,0.00043835,120]
[392075315,1761137440319,-502.90822126,0.00043835,120]
[392075317,1761137440329,-500.0,0.00043835,12]
[392075319,1761137440338,-400.0,0.00043835,120]
[392075321,1761137440347,-500.0,0.00043835,120]
[392075323,1761137440356,-506.48268119,0.00043835,120]
[392075325,1761137440365,-509.6423515,0.00043835,120]
[392075327,1761137440375,-500.0,0.00043835,120]
[392075329,1761137440383,-500.0,0.00043835,120]
[392075331,1761137440392,-500.0,0.00043835,120]
[392075333,1761137440401,-500.0,0.00043835,120]
[392075336,1761137440411,-500.0,0.00043835,120]
[392075338,1761137440424,-500.0,0.00043835,120]
[392075340,1761137440434,-506.16146398,0.00043835,120]
[392075342,1761137440443,-500.0,0.00043835,120]
[392075344,1761137440452,-500.0,0.00043835,120]
[392075346,1761137440462,-500.0,0.00043835,120]
[392075348,1761137440471,-500.0,0.00043835,120]
[392075350,1761137440480,-501.97228835,0.00043835,120]
[392075352,1761137440489,-500.0,0.00043835,120]
[392075354,1761137440499,-500.0,0.00043835,120]
[392075356,1761137440508,-500.0,0.00043835,120]
[392075358,1761137440517,-500.0,0.00043835,120]
[392075360,1761137440526,-500.0,0.00043835,120]
[392075362,1761137440536,-502.12156821,0.00043835,120]
[392075364,1761137440546,-500.0,0.00043835,120]
[392075366,1761137440556,-589.11393809,0.00043835,120]
[392075368,1761137440565,-503.07825965,0.00043835,120]
[392075370,1761137440575,-500.0,0.00043835,120]
[392075372,1761137440584,-398.03571757,0.00043835,120]
[392075374,1761137440593,-500.0,0.00043835,120]
[392075376,1761137440603,-518.35213056,0.00043835,120]
[392075378,1761137440613,-500.0,0.00043835,120]
[392075380,1761137440625,-500.0,0.00043835,120]
[392075382,1761137440634,-517.17870703,0.00043835,120]
[392075384,1761137440644,-537.03,0.00043835,120]
[392075386,1761137440653,-500.0,0.00043835,120]
[392075388,1761137440662,-500.0,0.00043835,120]
[392075390,1761137440671,-500.0,0.00043835,120]
[392075392,1761137440681,-1006.19,0.00043835,120]
[392075394,1761137440690,-500.0,0.00043835,120]
[392075396,1761137440700,-525.62555034,0.00043835,120]
[392075398,1761137440709,-500.0,0.00043835,120]
[392075400,1761137440719,-500.0,0.00043835,120]
[392075403,1761137440730,-503.01710578,0.00043835,120]
[392075404,1761137440740,-500.0,0.00043835,120]
[392075406,1761137440749,-500.0,0.00043835,120]
[392075409,1761137440759,-500.0,0.00043835,120]
[392075411,1761137440772,-500.0,0.00043835,120]
[392075413,1761137440782,-500.39604025,0.00043835,30]
[392075415,1761137440791,-768.78,0.00043835,120]
[392075417,1761137440802,-500.0,0.00043835,120]
[392075419,1761137440813,-500.0,0.00043835,120]
[392075421,1761137440822,-515.05,0.00043835,120]
[392075423,1761137440832,-507.30692384,0.00043835,120]
[392075425,1761137440842,-500.0,0.00043835,120]
[392075427,1761137440851,-503.83499522,0.00043835,120]
[392075429,1761137440860,-888.55,0.00043835,120]
[392075431,1761137440870,-500.0,0.00043835,120]
[392075433,1761137440879,-1783.82,0.00043835,120]
[392075435,1761137440888,-500.0,0.00043835,120]
[392075437,1761137440898,-507.39764129,0.00043835,120]
[392075439,1761137440907,-502.97909191,0.00043835,120]
[392075441,1761137440918,-500.0,0.00043835,120]
[392075443,1761137440928,-518.18063703,0.00043835,120]
[392075445,1761137440938,-500.0,0.00043835,120]
[392075447,1761137440948,-500.0,0.00043835,120]
[392075449,1761137440957,-517.05347508,0.00043835,120]
[392075451,1761137440967,-1004.91,0.00043835,120]
[392075453,1761137440976,-525.70818251,0.00043835,120]
[392075455,1761137440985,-500.0,0.00043835,120]
[392075457,1761137440995,-902.56,0.00043835,120]
[392075460,1761137441011,-500.0,0.00043835,120]
[392075463,1761137441023,-500.0,0.00043835,120]
[392075465,1761137441032,-500.0,0.00043835,120]
[392075466,1761137441042,-797.64,0.00043835,120]
[392075469,1761137441052,-508.72601981,0.00043835,120]
[392075471,1761137441062,-500.0,0.00043835,120]
[392075473,1761137441071,-727.22,0.00043835,120]
[392075475,1761137441081,-530.55799366,0.00043835,120]
[392075477,1761137441095,-500.0,0.00043835,120]
[392075479,1761137441105,-500.0,0.00043835,120]
[392075481,1761137441115,-500.0,0.00043835,120]
[392075483,1761137441124,-500.0,0.00043835,120]
[392075485,1761137441134,-596.43,0.00043835,30]
[392075487,1761137441143,-500.0,0.00043835,120]
[392075489,1761137441153,-500.0,0.00043835,120]
[392075491,1761137441162,-502.35512583,0.00043835,120]
[392075493,1761137441171,-500.0,0.00043835,120]
[392075495,1761137441181,-531.77356131,0.00043835,120]
[392075497,1761137441191,-500.0,0.00043835,120]
[392075499,1761137441201,-839.78,0.00043835,120]
[392075501,1761137441210,-507.39574301,0.00043835,120]
[392075503,1761137441219,-500.0,0.00043835,120]
[392075505,1761137441229,-500.0,0.00043835,120]
[392075507,1761137441238,-522.64445716,0.00043835,120]
[392075509,1761137441248,-1567.44,0.00043835,120]
[392075511,1761137441257,-501.80751424,0.00043835,120]
[392075513,1761137441266,-502.97747389,0.00043835,120]
[392075515,1761137441275,-978.8,0.00043835,120]
[392075517,1761137441285,-500.0,0.00043835,60]
[392075519,1761137441294,-513.19842259,0.00043835,120]
[392075521,1761137441303,-500.0,0.00043835,120]
[392075523,1761137441312,-550.93,0.00043835,120]
[392075525,1761137441322,-501.85710123,0.00043835,120]
[392075527,1761137441332,-500.0,0.00043835,120]
[392075529,1761137441341,-500.0,0.00043835,120]
[392075531,1761137441351,-500.0,0.00043835,120]
[392075533,1761137441360,-584.62854412,0.00043835,120]
[392075535,1761137441370,-500.0,0.00043835,120]
[392075537,1761137441379,-500.0,0.00043835,120]
[392075540,1761137441391,-500.0,0.00043835,120]
[392075542,1761137441402,-433.97544338,0.00043835,120]
[392075544,1761137441411,-500.0,0.00043835,120]
[392075546,1761137441420,-500.0,0.00043835,120]
[392075548,1761137441430,-1200.44,0.00043835,120]
[392075550,1761137441440,-500.0,0.00043835,120]
[392075552,1761137441449,-804.93,0.00043835,120]
[392075554,1761137441459,-739.04,0.00043835,120]
[392075556,1761137441468,-500.0,0.00043835,120]
[392075558,1761137441478,-500.0,0.00043835,120]
[392075560,1761137441487,-506.38395736,0.00043835,120]
[392075562,1761137441496,-500.0,0.00043835,120]
[392075564,1761137441507,-500.0,0.00043835,120]
[392075566,1761137441516,-618.80919512,0.00043835,120]
[392075568,1761137441526,-411.81656186,0.00043835,120]
[392075570,1761137441535,-500.0,0.00043835,120]
[392075572,1761137441544,-500.0,0.00043835,120]
[392075574,1761137441553,-461.58022605,0.00043835,120]
[392075576,1761137441563,-771.06,0.00043835,120]
[392075578,1761137441572,-794.03,0.00043835,120]
[392075580,1761137441582,-615.43341934,0.00043835,120]
[392075582,1761137441591,-500.0,0.00043835,120]
[392075584,1761137441601,-500.0,0.00043835,60]
[392075586,1761137441610,-500.0,0.00043835,120]
[392075588,1761137441619,-501.21690092,0.00043835,120]
[392075590,1761137441628,-500.0,0.00043835,120]
[392075592,1761137441638,-505.64421567,0.00043835,120]
[392075594,1761137441647,-1131.926837,0.00043835,120]
[392075596,1761137441656,-1137.8,0.00043835,120]
[392075598,1761137441666,-626.9,0.00043835,120]
[392075600,1761137441675,-500.0,0.00043835,120]
[392075603,1761137441684,-505.95648879,0.00043835,120]
[392075605,1761137441694,-626.46460222,0.00043835,120]
[392075607,1761137441703,-500.0,0.00043835,120]
[392075609,1761137441712,-1451.719144,0.00043835,120]
[392075611,1761137441721,-1380.960208,0.00043835,120]
[392075613,1761137441731,-509.41272043,0.00043835,120]
[392075615,1761137441740,-500.0,0.00043835,120]
[392075617,1761137441749,-506.77092243,0.00043835,120]
[392075619,1761137441760,-879.189763,0.00043835,120]
[392075621,1761137441775,-500.0,0.00043835,120]
[392075623,1761137441784,-500.0,0.00043835,120]
[392075625,1761137441794,-500.0,0.00043835,120]
[392075627,1761137441804,-187.981495,0.00043835,120]
[392075629,1761137441813,-500.0,0.00043835,120]
[392075631,1761137441822,-500.0,0.00043835,120]
[392075633,1761137441832,-409.8925451,0.00043835,120]
[392075635,1761137441844,-500.0,0.00043835,120]
[392075637,1761137441853,-500.0,0.00043835,120]
[392075639,1761137441862,-500.0,0.00043835,120]
[392075641,1761137441871,-522.78048529,0.00043835,120]
[392075643,1761137441880,-509.34148134,0.00043835,120]
[392075645,1761137441890,-502.99980229,0.00043835,120]
[392075647,1761137441899,-500.0,0.00043835,120]
[392075649,1761137441908,-500.0,0.00043835,120]
[392075651,1761137441917,-527.79801137,0.00043835,120]
[392075654,1761137441926,-500.0,0.00043835,120]
[392075656,1761137441936,-505.09039308,0.00043835,120]
[392075658,1761137441945,-499.58870098,0.00043835,120]
[392075659,1761137441954,-512.10214033,0.00043835,120]
[392075661,1761137441964,-500.0,0.00043835,120]
[392075664,1761137441973,-500.0,0.00043835,120]
[392075666,1761137441982,-500.0,0.00043835,120]
[392075668,1761137441992,-500.0,0.00043835,120]
[392075670,1761137442001,-504.083891,0.00043835,120]
[392075672,1761137442010,-553.52308014,0.00043835,120]
[392075673,1761137442020,-513.22430717,0.00043835,120]
[392075675,1761137442028,-500.0,0.00043835,120]
[392075677,1761137442039,-568.64,0.00043835,120]
[392075680,1761137442049,-500.0,0.00043835,120]
[392075682,1761137442058,-500.0,0.00043835,120]
[392075684,1761137442067,-500.0,0.00043835,2]
[392075686,1761137442076,-500.0,0.00043835,120]
[392075688,1761137442085,-935.82,0.00043835,120]
[392075690,1761137442094,-509.60201842,0.00043835,120]
[392075692,1761137442103,-507.84907346,0.00043835,120]
[392075694,1761137442114,-517.02252821,0.00043835,120]
[392075696,1761137442123,-500.0,0.00043835,120]
[392075698,1761137442132,-500.0,0.00043835,120]
[392075699,1761137442141,-502.33106282,0.00043835,120]
[392075700,1761137442150,-500.0,0.00043835,120]
[392075701,1761137442162,-560.31136898,0.00043835,120]
[392075702,1761137442171,-503.46759075,0.00043835,120]
[392075703,1761137442180,-835.83,0.00043835,120]
[392075704,1761137442189,-533.67708191,0.00043835,120]
[392075705,1761137442198,-511.08269924,0.00043835,120]
[392075706,1761137442207,-1199.67,0.00043835,120]
[392075707,1761137442216,-500.0,0.00043835,120]
[392075709,1761137442225,-508.83933453,0.00043835,120]
[392075711,1761137442235,-509.75916866,0.00043835,120]
[392075713,1761137442243,-512.95568192,0.00043835,120]
[392075715,1761137442252,-511.0986089,0.00043835,120]
[392075717,1761137442261,-536.69185579,0.00043835,120]
[392075719,1761137442271,-509.59733765,0.00043835,120]
[392075721,1761137442280,-634.10302962,0.00043835,120]
[392075723,1761137442289,-504.89254814,0.00043835,120]
[392075725,1761137442299,-541.07350245,0.00043835,120]
[392075727,1761137442308,-512.19556955,0.00043835,120]
[392075729,1761137442318,-499.11134062,0.00043835,120]
[392075731,1761137442328,-509.42196629,0.00043835,120]
[392075733,1761137442339,-503.76656609,0.00043835,120]
[392075735,1761137442349,-564.28854655,0.00043835,120]
[392075738,1761137442363,-500.0,0.00043835,120]
[392075740,1761137442373,-696.26,0.00043835,120]
[392075742,1761137442382,-500.0,0.00043835,120]
[392075744,1761137442392,-512.32831129,0.00043835,120]
[392075746,1761137442401,-500.0,0.00043835,120]
[392075768,1761137442411,-500.0,0.00043835,120]
[392075772,1761137442628,-652.36,0.00043835,120]
[392075775,1761137442637,-559.55462596,0.00043835,120]
[392075777,1761137442647,-511.45847393,0.00043835,120]
[392075779,1761137442656,-500.0,0.00043835,120]
[392075781,1761137442666,-400.53709648,0.00043835,120]
[392075783,1761137442675,-500.0,0.00043835,120]
[392075785,1761137442684,-500.0,0.00043835,120]
[392075787,1761137442693,-500.0,0.00043835,120]
[392075789,1761137442702,-619.07474474,0.00043835,120]
[392075791,1761137442711,-500.68053786,0.00043835,120]
[392075793,1761137442720,-501.06839385,0.00043835,120]
[392075795,1761137442729,-1077.51,0.00043835,120]
[392075797,1761137442738,-510.04607237,0.00043835,120]
[392075799,1761137442747,-511.3862754,0.00043835,120]
[392075801,1761137442756,-500.0,0.00043835,120]
[392075803,1761137442768,-503.9681179,0.00043835,120]
[392075805,1761137442778,-500.0,0.00043835,120]
[392075807,1761137442787,-538.28081543,0.00043835,120]
[392075809,1761137442796,-500.0,0.00043835,120]
[392075811,1761137442806,-525.79706564,0.00043835,120]
[392075813,1761137442815,-547.02678886,0.00043835,120]
[392075814,1761137442824,-246.02990994,0.00043835,120]
[392075817,1761137442834,-516.24,0.00043835,120]
[392075818,1761137442846,-1098.31,0.00043835,120]
[392075821,1761137442855,-501.08250642,0.00043835,120]
[392075823,1761137442864,-521.02605406,0.00043835,120]
[392075825,1761137442874,-412.24908463,0.00043835,120]
[392075827,1761137442883,-500.0,0.00043835,120]
[392075829,1761137442893,-362.80774297,0.00043835,120]
[392075831,1761137442902,-500.0,0.00043835,120]
[392075833,1761137442912,-500.0,0.00043835,120]
[392075835,1761137442921,-500.0,0.00043835,60]
[392075837,1761137442931,-589.50824909,0.00043835,120]
[392075839,1761137442941,-500.0,0.00043835,60]
[392075841,1761137442950,-500.0,0.00043835,120]
[392075843,1761137442959,-507.33431278,0.00043835,120]
[392075846,1761137442968,-500.0,0.00043835,120]
[392075849,1761137442977,-500.0,0.00043835,120]
[392075852,1761137442986,-500.0,0.00043835,120]
[392075855,1761137442995,-505.30566227,0.00043835,120]
[392075858,1761137443004,-500.0,0.00043835,120]
[392075861,1761137443013,-500.0,0.00043835,120]
[392075863,1761137443023,-500.0,0.00043835,120]
[392075866,1761137443032,-508.63623957,0.00043835,120]
[392075869,1761137443042,-500.0,0.00043835,120]
[392075871,1761137443052,-866.75,0.00043835,120]
[392075873,1761137443061,-507.87146882,0.00043835,120]
[392075875,1761137443071,-549.72968035,0.00043835,120]
[392075877,1761137443080,-500.0,0.00043835,120]
[392075879,1761137443089,-549.96861634,0.00043835,120]
[392075881,1761137443099,-500.0,0.00043835,120]
[392075883,1761137443108,-500.0,0.00043835,120]
[392075885,1761137443117,-500.0,0.00043835,120]
[392075887,1761137443126,-500.0,0.00043835,120]
[392075889,1761137443136,-500.0,0.00043835,120]
[392075892,1761137443145,-500.0,0.00043835,120]
[392075895,1761137443154,-483.19503796,0.00043835,120]
[392075898,1761137443164,-500.0,0.00043835,120]
[392075901,1761137443172,-500.0,0.00043835,120]
[392075903,1761137443182,-500.0,0.00043835,120]
[392075905,1761137443191,-500.0,0.00043835,120]
[392075907,1761137443200,-506.09660616,0.00043835,120]
[392075909,1761137443210,-500.0,0.00043835,120]
[392075911,1761137443219,-524.75811781,0.00043835,120]
[392075913,1761137443228,-502.69554006,0.00043835,120]
[392075915,1761137443237,-506.94753795,0.00043835,120]
[392075917,1761137443247,-528.75925394,0.00043835,120]
[392075919,1761137443256,-546.02113664,0.00043835,120]
[392075921,1761137443265,-500.0,0.00043835,120]
[392075923,1761137443274,-500.0,0.00043835,120]
[392075925,1761137443283,-520.91391119,0.00043835,120]
[392075927,1761137443292,-500.0,0.00043835,120]
[392075929,1761137443301,-644.62318315,0.00043835,120]
[392075931,1761137443310,-899.21,0.00043835,120]
[392075933,1761137443319,-500.45506342,0.00043835,120]
[392075935,1761137443329,-510.49074746,0.00043835,120]
[392075937,1761137443337,-500.0,0.00043835,120]
[392075939,1761137443347,-683.69,0.00043835,120]
[392075941,1761137443357,-500.94308516,0.00043835,120]
[392075943,1761137443366,-901.18,0.00043835,120]
[392075945,1761137443375,-519.4096955,0.00043835,120]
[392075948,1761137443385,-508.19579653,0.00043835,120]
[392075950,1761137443395,-500.0,0.00043835,120]
[392075952,1761137443404,-500.0,0.00043835,120]
[392075954,1761137443413,-500.0,0.00043835,120]
[392075956,1761137443422,-167.783265,0.00043835,120]
[392075958,1761137443431,-1139.36,0.00043835,120]
[392075960,1761137443441,-500.0,0.00043835,120]
[392075962,1761137443450,-556.84259295,0.00043835,120]
[392075964,1761137443460,-501.8737996,0.00043835,120]
[392075966,1761137443469,-598.59371992,0.00043835,120]
[392075968,1761137443478,-504.75241773,0.00043835,120]
[392075970,1761137443488,-978.62,0.00043835,120]
[392075972,1761137443497,-504.74009552,0.00043835,120]
[392075974,1761137443506,-500.0,0.00043835,120]
[392075975,1761137443516,-509.07167753,0.00043835,120]
[392075978,1761137443525,-615.84606646,0.00043835,120]
[392075979,1761137443535,-500.0,0.00043835,120]
[392075981,1761137443544,-500.97790397,0.00043835,120]
[392075984,1761137443553,-500.0,0.00043835,120]
[392075986,1761137443564,-508.43572326,0.00043835,120]
[392075988,1761137443573,-503.52052329,0.00043835,120]
[392075990,1761137443583,-503.85,0.00043835,120]
[392075992,1761137443592,-505.24709882,0.00043835,120]
[392075994,1761137443601,-500.0,0.00043835,120]
[392075996,1761137443611,-508.2530237,0.00043835,120]
[392075998,1761137443621,-511.09365496,0.00043835,120]
[392076000,1761137443630,-500.79446541,0.00043835,120]
[392076002,1761137443639,-500.0,0.00043835,120]
[392076004,1761137443648,-503.21872641,0.00043835,120]
[392076006,1761137443657,-518.59135662,0.00043835,120]
[392076008,1761137443666,-502.14432295,0.00043835,120]
[392076010,1761137443675,-508.13163361,0.00043835,120]
[392076012,1761137443684,-500.0,0.00043835,120]
[392076014,1761137443693,-1709.15,0.00043835,120]
[392076016,1761137443702,-504.22777859,0.00043835,120]
[392076018,1761137443711,-511.56039455,0.00043835,120]
[392076020,1761137443720,-500.0,0.00043835,120]
[392076022,1761137443730,-500.93375911,0.00043835,120]
[392076024,1761137443740,-500.0,0.00043835,120]
[392076026,1761137443749,-502.50664072,0.00043835,120]
[392076028,1761137443759,-506.34489947,0.00043835,120]
[392076030,1761137443773,-559.98893019,0.00043835,120]
[392076032,1761137443783,-500.0,0.00043835,120]
[392076034,1761137443793,-290.117368,0.00043835,120]
[392076036,1761137443803,-1255.83,0.00043835,120]
[392076038,1761137443814,-500.0,0.00043835,120]
[392076040,1761137443823,-500.0,0.00043835,120]
[392076042,1761137443834,-500.0,0.00043835,120]
[392076044,1761137443844,-500.0,0.00043835,120]
[392076046,1761137443853,-500.90866317,0.00043835,120]
[392076048,1761137443863,-501.77133782,0.00043835,120]
[392076050,1761137443872,-501.88475987,0.00043835,120]
[392076052,1761137443881,-500.0,0.00043835,120]
[392076054,1761137443890,-504.61057693,0.00043835,120]
[392076056,1761137443899,-500.0,0.00043835,120]
[392076058,1761137443909,-507.19361392,0.00043835,120]
[392076060,1761137443918,-500.0,0.00043835,120]
[392076061,1761137443927,-501.14729152,0.00043835,120]
[392076062,1761137443935,-501.19793312,0.00043835,120]
[392076063,1761137443944,-500.0,0.00043835,120]
[392076064,1761137443953,-171.7966278,0.00043835,120]
[392076065,1761137443962,-500.0,0.00043835,120]
[392076066,1761137443971,-502.84421814,0.00043835,120]
[392076067,1761137443980,-504.2542875,0.00043835,120]
[392076068,1761137443989,-500.0,0.00043835,120]
[392076070,1761137443998,-598.97,0.00043835,120]
[392076072,1761137444007,-502.61506345,0.00043835,120]
[392076074,1761137444016,-500.0,0.00043835,120]
[392076076,1761137444025,-500.0,0.00043835,120]
[392076078,1761137444035,-521.58955088,0.00043835,120]
[392076080,1761137444044,-500.0,0.00043835,120]
[392076082,1761137444053,-500.0,0.00043835,120]
[392076084,1761137444062,-500.0,0.00043835,120]
[392076086,1761137444071,-500.0,0.00043835,120]
[392076088,1761137444081,-528.80169041,0.00043835,120]
[392076090,1761137444091,-500.0,0.00043835,120]
[392076092,1761137444100,-510.17871822,0.00043835,120]
[392076094,1761137444109,-500.0,0.00043835,120]
[392076095,1761137444118,-500.0,0.00043835,120]
[392076098,1761137444128,-513.63349434,0.00043835,120]
[392076100,1761137444138,-500.0,0.00043835,120]
[392076102,1761137444147,-500.0,0.00043835,120]
[392076104,1761137444156,-512.75107592,0.00043835,120]
[392076105,1761137444166,-500.0,0.00043835,120]
[392076107,1761137444175,-500.0,0.00043835,120]
[392076109,1761137444185,-510.35460344,0.00043835,120]
[392076111,1761137444194,-500.0,0.00043835,60]
[392076114,1761137444203,-501.63097017,0.00043835,120]
[392076116,1761137444213,-500.0,0.00043835,120]
[392076118,1761137444222,-500.0,0.00043835,120]
[392076120,1761137444231,-540.8132191,0.00043835,120]
[392076122,1761137444240,-528.24975002,0.00043835,120]
[392076123,1761137444249,-500.0,0.00043835,120]
[392076125,1761137444259,-500.0,0.00043835,120]
[392076128,1761137444268,-602.48775625,0.00043835,120]
[392076130,1761137444277,-500.0,0.00043835,120]
[392076132,1761137444286,-500.0,0.00043835,120]
[392076133,1761137444295,-501.70250831,0.00043835,120]
[392076136,1761137444305,-500.0,0.00043835,120]
[392076137,1761137444315,-500.0,0.00043835,120]
[392076140,1761137444324,-500.0,0.00043835,120]
[392076142,1761137444334,-500.0,0.00043835,120]
[392076144,1761137444343,-500.0,0.00043835,120]
[392076146,1761137444353,-507.79481713,0.00043835,120]
[392076148,1761137444362,-500.0,0.00043835,120]
[392076150,1761137444371,-500.0,0.00043835,120]
[392076152,1761137444380,-505.71841019,0.00043835,120]
[392076154,1761137444389,-509.23204148,0.00043835,120]
[392076156,1761137444399,-500.0,0.00043835,120]
[392076158,1761137444408,-500.0,0.00043835,120]
[392076160,1761137444418,-503.75634328,0.00043835,120]
[392076162,1761137444427,-500.0,0.00043835,120]
[392076164,1761137444436,-500.0,0.00043835,120]
[392076166,1761137444445,-500.0,0.00043835,120]
[392076168,1761137444455,-500.0,0.00043835,120]
[392076170,1761137444464,-500.0,0.00043835,120]
[392076172,1761137444474,-299.0,0.00043835,120]
[392076174,1761137444484,-500.0,0.00043835,120]
[392076176,1761137444493,-500.0,0.00043835,120]
[392076178,1761137444503,-510.93028809,0.00043835,120]
[392076180,1761137444512,-519.35572878,0.00043835,120]
[392076182,1761137444521,-500.0,0.00043835,120]
[392076184,1761137444530,-500.0,0.00043835,120]
[392076186,1761137444540,-500.0,0.00043835,120]
[392076188,1761137444549,-500.0,0.00043835,120]
[392076190,1761137444558,-500.0,0.00043835,120]
[392076192,1761137444567,-575.63702773,0.00043835,120]
[392076194,1761137444577,-509.03478834,0.00043835,120]
[392076196,1761137444586,-500.0,0.00043835,120]
[392076198,1761137444595,-500.0,0.00043835,120]
[392076200,1761137444605,-500.0,0.00043835,120]
[392076202,1761137444614,-500.0,0.00043835,120]
[392076204,1761137444623,-500.0,0.00043835,120]
[392076206,1761137444632,-500.0,0.00043835,120]
[392076208,1761137444642,-505.20998074,0.00043835,120]
[392076210,1761137444654,-512.76701313,0.00043835,120]
[392076212,1761137444663,-500.0,0.00043835,120]
[392076214,1761137444672,-913.64,0.00043835,2]
[392076216,1761137444681,-500.0,0.00043835,120]
[392076218,1761137444690,-500.0,0.00043835,120]
[392076220,1761137444699,-536.46471441,0.00043835,120]
[392076221,1761137444708,-500.0,0.00043835,120]
[392076223,1761137444718,-513.52783775,0.00043835,120]
[392076225,1761137444728,-500.0,0.00043835,120]
[392076227,1761137444737,-516.0780715,0.00043835,120]
[392076230,1761137444747,-500.0,0.00043835,2]
[392076232,1761137444759,-503.20369278,0.00043835,120]
[392076234,1761137444771,-788.16,0.00043835,120]
[392076236,1761137444781,-500.0,0.00043835,120]
[392076238,1761137444790,-500.0,0.00043835,120]
[392076240,1761137444800,-500.0,0.00043835,120]
[392076241,1761137444810,-572.17,0.00043835,120]
[392076244,1761137444819,-500.0,0.00043835,120]
[392076246,1761137444828,-500.0,0.00043835,120]
[392076248,1761137444838,-500.0,0.00043835,120]
[392076250,1761137444849,-500.0,0.00043835,120]
[392076252,1761137444858,-508.22035574,0.00043835,120]
[392076253,1761137444867,-500.0,0.00043835,120]
[392076255,1761137444876,-500.0,0.00043835,120]
[392076257,1761137444885,-500.0,0.00043835,120]
[392076259,1761137444895,-500.0,0.00043835,120]
[392076262,1761137444908,-500.0,0.00043835,120]
[392076265,1761137444958,-500.0,0.00043835,120]
[392076266,1761137444968,-503.9131997,0.00043835,120]
[392076267,1761137444977,-500.0,0.00043835,120]
[392076268,1761137444985,-500.0,0.00043835,120]
[392076269,1761137444994,-500.0,0.00043835,120]
[392076270,1761137445003,-500.0,0.00043835,120]
[392076271,1761137445012,-500.0,0.00043835,120]
[392076272,1761137445021,-490.0,0.00043835,120]
[392076273,1761137445030,-500.0,0.00043835,120]
[392076274,1761137445039,-515.55478573,0.00043835,120]
[392076275,1761137445048,-502.96340765,0.00043835,120]
[392076277,1761137445057,-522.68812279,0.00043835,120]
[392076279,1761137445066,-500.0,0.00043835,120]
[392076281,1761137445075,-501.21100855,0.00043835,120]
[392076283,1761137445084,-500.0,0.00043835,120]
[392076285,1761137445096,-507.56,0.00043835,120]
[392076287,1761137445104,-1172.27,0.00043835,120]